[Event "Early-Titled-Tuesday-Blitz-January-23-2024"]
[Site "Chess.com"]
[Date "2024.01.23"]
[Round "10"]
[White "ViIIagra"]
[Black "Oleksandr_Bortnyk"]
[Result "1-0"]
[WhiteElo "2983"]
[BlackElo "3069"]
[TimeControl "180+1"]
[EndTime "9:55:17 PST"]
[Termination "ViIIagra won by resignation"]

1. d4 {[%clk 0:02:53.2]} 1... Nf6 {[%clk 0:02:59.3]} 2. Bf4 {[%clk 0:02:53.9]}
2... b6 {[%clk 0:02:56.3]} 3. e3 {[%clk 0:02:53]} 3... Bb7 {[%clk 0:02:56.9]} 4.
Nf3 {[%clk 0:02:52.5]} 4... d6 {[%clk 0:02:57.2]} 5. h3 {[%clk 0:02:52.9]} 5...
Nbd7 {[%clk 0:02:57.8]} 6. Be2 {[%clk 0:02:52.9]} 6... e6 {[%clk 0:02:57.5]} 7.
O-O {[%clk 0:02:53.1]} 7... Be7 {[%clk 0:02:57.6]} 8. c4 {[%clk 0:02:53.3]} 8...
h6 {[%clk 0:02:58.3]} 9. Nc3 {[%clk 0:02:53.8]} 9... g5 {[%clk 0:02:59.1]} 10.
Bh2 {[%clk 0:02:54.2]} 10... g4 {[%clk 0:02:59.7]} 11. hxg4 {[%clk 0:02:51.7]}
11... Nxg4 {[%clk 0:03:00.6]} 12. d5 {[%clk 0:02:52.4]} 12... Nxh2 {[%clk
0:02:58.4]} 13. Nxh2 {[%clk 0:02:51.6]} 13... e5 {[%clk 0:02:57.3]} 14. Bg4
{[%clk 0:02:42.4]} 14... Rg8 {[%clk 0:02:54.2]} 15. Ne4 {[%clk 0:02:40.6]} 15...
Bc8 {[%clk 0:02:38.4]} 16. Qf3 {[%clk 0:02:13.4]} 16... a5 {[%clk 0:02:37]} 17.
Kh1 {[%clk 0:01:39.2]} 17... Rg7 {[%clk 0:02:27.7]} 18. Bf5 {[%clk 0:01:39.2]}
18... Bg5 {[%clk 0:02:12]} 19. g4 {[%clk 0:01:35.7]} 19... Qe7 {[%clk
0:02:05.6]} 20. a3 {[%clk 0:01:28.7]} 20... a4 {[%clk 0:02:05.4]} 21. Qh3 {[%clk
0:01:23.1]} 21... Kd8 {[%clk 0:01:59.1]} 22. f4 {[%clk 0:01:22.8]} 22... Bh4
{[%clk 0:01:42.2]} 23. g5 {[%clk 0:01:13.1]} 23... hxg5 {[%clk 0:01:29.8]} 24.
fxg5 {[%clk 0:01:13]} 24... Rxg5 {[%clk 0:01:17.7]} 25. Nxg5 {[%clk 0:01:11.2]}
25... Bxg5 {[%clk 0:01:18.5]} 26. Rg1 {[%clk 0:01:00.9]} 26... Nf8 {[%clk
0:01:03.8]} 27. Bxc8 {[%clk 0:00:49.1]} 27... Rxc8 {[%clk 0:01:04.7]} 28. Qf5
{[%clk 0:00:49.4]} 28... f6 {[%clk 0:00:55.7]} 29. Raf1 {[%clk 0:00:49.3]} 29...
c6 {[%clk 0:00:55.8]} 30. Rxg5 {[%clk 0:00:49.1]} 30... fxg5 {[%clk 0:00:37.1]}
31. Qxf8+ {[%clk 0:00:48.7]} 31... Kd7 {[%clk 0:00:37.8]} 32. Qf5+ {[%clk
0:00:46.4]} 32... Kd8 {[%clk 0:00:32.3]} 33. Qg6 {[%clk 0:00:43.4]} 33... Rc7
{[%clk 0:00:30.8]} 34. Qg8+ {[%clk 0:00:43]} 34... Kd7 {[%clk 0:00:31]} 35. Rf7
{[%clk 0:00:42.6]} 1-0

[Event "Early-Titled-Tuesday-Blitz-January-23-2024"]
[Site "Chess.com"]
[Date "2024.01.23"]
[Round "10"]
[White "ukchessbomber"]
[Black "Byniolus"]
[Result "0-1"]
[WhiteElo "2693"]
[BlackElo "2865"]
[TimeControl "180+1"]
[EndTime "9:55:20 PST"]
[Termination "Byniolus won by resignation"]

1. Nf3 {[%clk 0:03:00.9]} 1... d5 {[%clk 0:02:59.6]} 2. h3 {[%clk 0:02:59.1]}
2... Nf6 {[%clk 0:02:57.2]} 3. e3 {[%clk 0:02:59.5]} 3... Bf5 {[%clk 0:02:55.2]}
4. b3 {[%clk 0:02:58.8]} 4... e6 {[%clk 0:02:55.2]} 5. Bb2 {[%clk 0:02:59.4]}
5... h6 {[%clk 0:02:54.5]} 6. Be2 {[%clk 0:02:59.9]} 6... c6 {[%clk 0:02:51.2]}
7. O-O {[%clk 0:02:59.9]} 7... Nbd7 {[%clk 0:02:49.5]} 8. c4 {[%clk 0:02:59.9]}
8... Bd6 {[%clk 0:02:49.2]} 9. Nc3 {[%clk 0:03:00.1]} 9... O-O {[%clk
0:02:49.4]} 10. d3 {[%clk 0:02:59.6]} 10... Qe7 {[%clk 0:02:49.6]} 11. Rc1
{[%clk 0:02:58.9]} 11... a6 {[%clk 0:02:47.8]} 12. Qc2 {[%clk 0:02:59.3]} 12...
Bh7 {[%clk 0:02:44.9]} 13. Qb1 {[%clk 0:02:58.7]} 13... e5 {[%clk 0:02:44.7]}
14. cxd5 {[%clk 0:02:58.5]} 14... cxd5 {[%clk 0:02:44.5]} 15. Qa1 {[%clk
0:02:59]} 15... e4 {[%clk 0:02:42.2]} 16. dxe4 {[%clk 0:02:59.9]} 16... dxe4
{[%clk 0:02:42.9]} 17. Nh2 {[%clk 0:02:58.8]} 17... Ne5 {[%clk 0:02:40.3]} 18.
Rfd1 {[%clk 0:02:58.2]} 18... Rfd8 {[%clk 0:02:34.8]} 19. Nd5 {[%clk 0:02:47.1]}
19... Nxd5 {[%clk 0:02:31.7]} 20. Rxd5 {[%clk 0:02:48]} 20... f6 {[%clk
0:02:22]} 21. Rcd1 {[%clk 0:02:41.4]} 21... Nd3 {[%clk 0:02:13.5]} 22. Bxd3
{[%clk 0:02:22]} 22... exd3 {[%clk 0:02:14.4]} 23. Rd4 {[%clk 0:02:22.4]} 23...
Be5 {[%clk 0:01:59]} 24. Rxd8+ {[%clk 0:01:41.2]} 24... Rxd8 {[%clk 0:01:59.9]}
25. Bxe5 {[%clk 0:01:41.6]} 25... fxe5 {[%clk 0:01:56.3]} 26. Ng4 {[%clk
0:01:41.7]} 26... e4 {[%clk 0:01:46.5]} 27. Qc3 {[%clk 0:01:42.1]} 27... Bf5
{[%clk 0:01:42]} 28. Ne5 {[%clk 0:01:34.4]} 28... Kh7 {[%clk 0:01:33.6]} 29. a4
{[%clk 0:00:21.8]} 29... Qf6 {[%clk 0:01:20.4]} 30. b4 {[%clk 0:00:19.3]} 30...
Rd5 {[%clk 0:01:14.8]} 31. g4 {[%clk 0:00:15.2]} 31... Bg6 {[%clk 0:01:07.5]}
32. f4 {[%clk 0:00:03.2]} 32... exf3 {[%clk 0:01:03.4]} 0-1

[Event "Early-Titled-Tuesday-Blitz-January-23-2024"]
[Site "Chess.com"]
[Date "2024.01.23"]
[Round "10"]
[White "Alexei_Gubajdullin"]
[Black "atalz0"]
[Result "1-0"]
[WhiteElo "2587"]
[BlackElo "2474"]
[TimeControl "180+1"]
[EndTime "9:55:27 PST"]
[Termination "Alexei_Gubajdullin won by resignation"]

1. d4 {[%clk 0:03:00]} 1... Nf6 {[%clk 0:02:59.5]} 2. Nf3 {[%clk 0:03:00]} 2...
e6 {[%clk 0:02:59.9]} 3. Bf4 {[%clk 0:03:00.6]} 3... d5 {[%clk 0:02:59.4]} 4. e3
{[%clk 0:03:00.7]} 4... Bd6 {[%clk 0:02:59.9]} 5. Bg3 {[%clk 0:03:00.4]} 5... c5
{[%clk 0:02:58.5]} 6. Nbd2 {[%clk 0:03:00.3]} 6... O-O {[%clk 0:02:56.4]} 7. Bd3
{[%clk 0:02:58.8]} 7... Nc6 {[%clk 0:02:42.6]} 8. c3 {[%clk 0:02:54.9]} 8... b6
{[%clk 0:02:41.4]} 9. Ne5 {[%clk 0:02:54.5]} 9... Bb7 {[%clk 0:02:41.2]} 10. f4
{[%clk 0:02:54]} 10... Ne7 {[%clk 0:02:41.1]} 11. Qf3 {[%clk 0:02:52.5]} 11...
Nf5 {[%clk 0:02:31.9]} 12. h4 {[%clk 0:02:51.9]} 12... Nxg3 {[%clk 0:02:29]} 13.
Qxg3 {[%clk 0:02:51.5]} 13... Ne4 {[%clk 0:02:29.1]} 14. Nxe4 {[%clk 0:02:47.8]}
14... dxe4 {[%clk 0:02:30]} 15. Bc4 {[%clk 0:02:47]} 15... cxd4 {[%clk
0:02:10.3]} 16. exd4 {[%clk 0:02:46.7]} 16... Rc8 {[%clk 0:02:07.3]} 17. Bb3
{[%clk 0:02:46.2]} 17... Bd5 {[%clk 0:02:00.4]} 18. h5 {[%clk 0:02:44.9]} 18...
f6 {[%clk 0:01:53]} 19. h6 {[%clk 0:02:41.6]} 19... Rc7 {[%clk 0:01:52]} 20. Ng4
{[%clk 0:02:36.7]} 20... g5 {[%clk 0:01:43.8]} 21. Rf1 {[%clk 0:02:20.4]} 21...
Kh8 {[%clk 0:01:36.5]} 22. O-O-O {[%clk 0:02:10.7]} 22... gxf4 {[%clk
0:01:14.5]} 23. Rxf4 {[%clk 0:02:10.1]} 23... Rg8 {[%clk 0:01:11.4]} 24. Qf2
{[%clk 0:02:08.4]} 24... Bxf4+ {[%clk 0:01:03.7]} 25. Qxf4 {[%clk 0:02:08]}
25... Rg6 {[%clk 0:01:03]} 26. Rf1 {[%clk 0:02:05.1]} 26... Rc8 {[%clk
0:00:29.5]} 27. Nxf6 {[%clk 0:02:00.7]} 27... Bxb3 {[%clk 0:00:29.2]} 28. axb3
{[%clk 0:01:42.1]} 28... Qxd4 {[%clk 0:00:26.3]} 29. Ne8 {[%clk 0:01:32.3]}
29... Qc5 {[%clk 0:00:16.9]} 30. b4 {[%clk 0:01:21.9]} 30... Qe7 {[%clk
0:00:15.9]} 31. Qe5+ {[%clk 0:01:19.5]} 31... Kg8 {[%clk 0:00:13.8]} 32. Nf6+
{[%clk 0:01:18.3]} 32... Rxf6 {[%clk 0:00:12.4]} 33. Rxf6 {[%clk 0:01:17.6]}
33... Rd8 {[%clk 0:00:10.3]} 34. Rf4 {[%clk 0:01:08.7]} 34... Rd5 {[%clk
0:00:07.5]} 35. Rg4+ {[%clk 0:01:08.6]} 35... Kf8 {[%clk 0:00:04.6]} 36. Qh8+
{[%clk 0:01:07.5]} 36... Kf7 {[%clk 0:00:04.9]} 37. Rg7+ {[%clk 0:01:07.1]} 1-0

[Event "Early-Titled-Tuesday-Blitz-January-23-2024"]
[Site "Chess.com"]
[Date "2024.01.23"]
[Round "10"]
[White "andrzej"]
[Black "winniethepooh04"]
[Result "1-0"]
[WhiteElo "2413"]
[BlackElo "2524"]
[TimeControl "180+1"]
[EndTime "9:55:28 PST"]
[Termination "andrzej won by resignation"]

1. e4 {[%clk 0:03:00.9]} 1... e6 {[%clk 0:03:00.1]} 2. d4 {[%clk 0:03:00.8]}
2... d5 {[%clk 0:03:00.7]} 3. Nc3 {[%clk 0:03:01.4]} 3... dxe4 {[%clk
0:03:00.8]} 4. Nxe4 {[%clk 0:03:01.4]} 4... Nd7 {[%clk 0:03:01.5]} 5. Nf3 {[%clk
0:02:59.3]} 5... Ngf6 {[%clk 0:03:02.2]} 6. Nxf6+ {[%clk 0:02:59.3]} 6... Nxf6
{[%clk 0:03:03.1]} 7. Be3 {[%clk 0:02:59.2]} 7... Nd5 {[%clk 0:03:02.2]} 8. Bd2
{[%clk 0:02:58.5]} 8... c5 {[%clk 0:03:02]} 9. Bb5+ {[%clk 0:02:57.1]} 9... Bd7
{[%clk 0:03:01.5]} 10. Bxd7+ {[%clk 0:02:56.2]} 10... Qxd7 {[%clk 0:03:01.8]}
11. c4 {[%clk 0:02:56.6]} 11... Nb6 {[%clk 0:02:52.9]} 12. Rc1 {[%clk
0:02:52.6]} 12... cxd4 {[%clk 0:02:48.6]} 13. c5 {[%clk 0:02:47.9]} 13... Nd5
{[%clk 0:02:48.8]} 14. Ne5 {[%clk 0:02:48]} 14... Qb5 {[%clk 0:02:48.1]} 15. Qf3
{[%clk 0:02:40]} 15... Nf6 {[%clk 0:02:36.6]} 16. a4 {[%clk 0:02:28.7]} 16...
Qxb2 {[%clk 0:02:25.2]} 17. c6 {[%clk 0:01:56.5]} 17... Bb4 {[%clk 0:02:16.2]}
18. O-O {[%clk 0:01:34.7]} 18... O-O {[%clk 0:01:42.2]} 19. Bxb4 {[%clk
0:01:33.4]} 19... Qxb4 {[%clk 0:01:41.3]} 20. Rb1 {[%clk 0:01:33]} 20... Qxa4
{[%clk 0:01:33.1]} 21. cxb7 {[%clk 0:01:32.3]} 21... Rab8 {[%clk 0:01:32.1]} 22.
Nc6 {[%clk 0:01:28.8]} 22... Nd5 {[%clk 0:01:32]} 23. Nxb8 {[%clk 0:01:24.6]}
23... Rxb8 {[%clk 0:01:32.9]} 24. Rfc1 {[%clk 0:01:24.9]} 24... Qd7 {[%clk
0:01:25.3]} 25. Qb3 {[%clk 0:01:12]} 25... Nb6 {[%clk 0:01:18.3]} 26. Qc2 {[%clk
0:00:56.1]} 26... Qxb7 {[%clk 0:01:12.1]} 27. Qc7 {[%clk 0:00:40.5]} 27... g6
{[%clk 0:01:03.2]} 28. Qe5 {[%clk 0:00:27.6]} 28... Qd7 {[%clk 0:01:00.9]} 29.
Qxb8+ {[%clk 0:00:26.4]} 29... Kg7 {[%clk 0:00:59]} 30. Qe5+ {[%clk 0:00:26.7]}
30... Kg8 {[%clk 0:00:56.3]} 31. Rc7 {[%clk 0:00:26.7]} 31... Qd8 {[%clk
0:00:52.5]} 32. Rbc1 {[%clk 0:00:20.9]} 32... Nd5 {[%clk 0:00:51]} 33. Rc8
{[%clk 0:00:19.9]} 1-0

[Event "Early-Titled-Tuesday-Blitz-January-23-2024"]
[Site "Chess.com"]
[Date "2024.01.23"]
[Round "10"]
[White "ChessSwole"]
[Black "Mistango"]
[Result "1-0"]
[WhiteElo "2632"]
[BlackElo "2516"]
[TimeControl "180+1"]
[EndTime "9:55:29 PST"]
[Termination "ChessSwole won by resignation"]

1. e4 {[%clk 0:03:00.9]} 1... c5 {[%clk 0:02:59.6]} 2. c3 {[%clk 0:03:01.2]}
2... d5 {[%clk 0:02:59.5]} 3. exd5 {[%clk 0:03:02.1]} 3... Qxd5 {[%clk 0:03:00]}
4. d4 {[%clk 0:03:02.4]} 4... cxd4 {[%clk 0:03:00.9]} 5. cxd4 {[%clk 0:03:02.6]}
5... e5 {[%clk 0:03:01.5]} 6. Nf3 {[%clk 0:03:00]} 6... exd4 {[%clk 0:03:01.5]}
7. Qxd4 {[%clk 0:02:59.8]} 7... Nf6 {[%clk 0:03:02.1]} 8. Nc3 {[%clk 0:02:58.5]}
8... Qxd4 {[%clk 0:03:00.8]} 9. Nxd4 {[%clk 0:02:59.4]} 9... Bb4 {[%clk
0:02:47.6]} 10. Bb5+ {[%clk 0:02:46.7]} 10... Bd7 {[%clk 0:02:46.6]} 11. O-O
{[%clk 0:02:45.8]} 11... O-O {[%clk 0:02:46.9]} 12. Rd1 {[%clk 0:02:29.6]} 12...
Nc6 {[%clk 0:02:40.5]} 13. Nxc6 {[%clk 0:02:26.2]} 13... Bxc6 {[%clk 0:02:38.9]}
14. Bxc6 {[%clk 0:02:25.4]} 14... bxc6 {[%clk 0:02:39.8]} 15. Be3 {[%clk
0:02:15]} 15... Bxc3 {[%clk 0:02:32.8]} 16. bxc3 {[%clk 0:02:15.9]} 16... Nd5
{[%clk 0:02:33.1]} 17. Bd4 {[%clk 0:02:14.5]} 17... Rfe8 {[%clk 0:02:27.8]} 18.
Kf1 {[%clk 0:02:10.5]} 18... a5 {[%clk 0:02:25]} 19. Rab1 {[%clk 0:02:09.4]}
19... Rab8 {[%clk 0:02:16.8]} 20. a4 {[%clk 0:02:00.3]} 20... f6 {[%clk
0:02:13.7]} 21. g3 {[%clk 0:01:49.6]} 21... Kf7 {[%clk 0:02:13.5]} 22. c4 {[%clk
0:01:28]} 22... Nb4 {[%clk 0:02:13.7]} 23. Bc5 {[%clk 0:01:27.9]} 23... Re4
{[%clk 0:01:36.7]} 24. Rd7+ {[%clk 0:01:23.7]} 24... Kg6 {[%clk 0:01:35.5]} 25.
Bd6 {[%clk 0:01:03.4]} 25... Rbe8 {[%clk 0:01:25]} 26. Bxb4 {[%clk 0:00:51.4]}
26... Rb8 {[%clk 0:01:24.5]} 27. Re1 {[%clk 0:00:33.2]} 27... Rxc4 {[%clk
0:01:17.5]} 28. Bxa5 {[%clk 0:00:33]} 28... Rxa4 {[%clk 0:01:17.6]} 29. Bd2
{[%clk 0:00:32]} 29... Raa8 {[%clk 0:01:01]} 30. Ree7 {[%clk 0:00:31.5]} 30...
Rg8 {[%clk 0:01:01.7]} 31. Rc7 {[%clk 0:00:31.4]} 31... Rac8 {[%clk 0:01:01]}
32. Rxg7+ {[%clk 0:00:31.6]} 32... Rxg7 {[%clk 0:01:01.7]} 33. Rxc8 {[%clk
0:00:32.1]} 33... Rd7 {[%clk 0:01:01.7]} 34. Be3 {[%clk 0:00:32]} 34... Rd6
{[%clk 0:01:01.7]} 35. Kg2 {[%clk 0:00:32.2]} 35... Kf5 {[%clk 0:01:01.3]} 36.
Kf3 {[%clk 0:00:32.8]} 36... Ke6 {[%clk 0:00:57.6]} 37. Ke4 {[%clk 0:00:30]}
37... Kd7 {[%clk 0:00:50.8]} 38. Rh8 {[%clk 0:00:29.6]} 38... Re6+ {[%clk
0:00:51.4]} 39. Kf5 {[%clk 0:00:29.5]} 39... h5 {[%clk 0:00:51]} 40. Rh7+ {[%clk
0:00:28.4]} 40... Kd6 {[%clk 0:00:50.6]} 41. Bf4+ {[%clk 0:00:29]} 41... Kd5
{[%clk 0:00:51.2]} 42. Rd7+ {[%clk 0:00:29.3]} 1-0

[Event "Early-Titled-Tuesday-Blitz-January-23-2024"]
[Site "Chess.com"]
[Date "2024.01.23"]
[Round "10"]
[White "AvitalBor"]
[Black "otrov-11"]
[Result "1-0"]
[WhiteElo "2757"]
[BlackElo "2511"]
[TimeControl "180+1"]
[EndTime "9:55:36 PST"]
[Termination "AvitalBor won by resignation"]

1. b3 {[%clk 0:03:00.9]} 1... Nf6 {[%clk 0:02:58.2]} 2. Bb2 {[%clk 0:03:01.8]}
2... e6 {[%clk 0:02:58.7]} 3. g3 {[%clk 0:03:00.7]} 3... d5 {[%clk 0:02:58.5]}
4. Bg2 {[%clk 0:03:01.6]} 4... Be7 {[%clk 0:02:58.8]} 5. e3 {[%clk 0:03:01.1]}
5... O-O {[%clk 0:02:59.4]} 6. Ne2 {[%clk 0:03:01.8]} 6... b6 {[%clk 0:02:55.3]}
7. O-O {[%clk 0:03:02.2]} 7... Bb7 {[%clk 0:02:55.7]} 8. a4 {[%clk 0:03:02]}
8... a5 {[%clk 0:02:52.7]} 9. d3 {[%clk 0:02:57.1]} 9... Nbd7 {[%clk 0:02:53.1]}
10. Nd2 {[%clk 0:02:57.2]} 10... e5 {[%clk 0:02:50.4]} 11. d4 {[%clk 0:02:55.4]}
11... Bd6 {[%clk 0:02:48.5]} 12. c4 {[%clk 0:02:52.3]} 12... exd4 {[%clk
0:02:47.5]} 13. Nxd4 {[%clk 0:02:52]} 13... Ne5 {[%clk 0:02:35.2]} 14. Qc2
{[%clk 0:02:47.8]} 14... Qc8 {[%clk 0:02:19]} 15. Nf5 {[%clk 0:02:38.6]} 15...
dxc4 {[%clk 0:02:19.1]} 16. Bxe5 {[%clk 0:02:36.9]} 16... cxb3 {[%clk
0:02:04.4]} 17. Nxb3 {[%clk 0:02:35.4]} 17... Bxg2 {[%clk 0:02:03.6]} 18. Bxd6
{[%clk 0:02:34.3]} 18... Qb7 {[%clk 0:01:52.7]} 19. Bxf8 {[%clk 0:02:20.1]}
19... Be4 {[%clk 0:01:44.8]} 20. Qe2 {[%clk 0:02:13.3]} 20... Kxf8 {[%clk
0:01:40.8]} 21. Nfd4 {[%clk 0:02:09.4]} 21... Re8 {[%clk 0:01:37.6]} 22. f3
{[%clk 0:02:06.7]} 22... Bg6 {[%clk 0:01:35.9]} 23. Qd2 {[%clk 0:02:00]} 23...
Kg8 {[%clk 0:01:33]} 24. e4 {[%clk 0:01:59.4]} 24... h5 {[%clk 0:01:25.2]} 25.
Nf5 {[%clk 0:01:54.1]} 25... Kh7 {[%clk 0:00:43.9]} 26. Rac1 {[%clk 0:01:48.3]}
26... b5 {[%clk 0:00:37.4]} 27. Qxa5 {[%clk 0:01:34.9]} 27... bxa4 {[%clk
0:00:34.8]} 28. Qxa4 {[%clk 0:01:35]} 28... Ra8 {[%clk 0:00:34.4]} 29. Qc6
{[%clk 0:01:31]} 29... Qa7+ {[%clk 0:00:22.8]} 30. Kh1 {[%clk 0:01:29.8]} 30...
Qa3 {[%clk 0:00:20.4]} 31. Ra1 {[%clk 0:01:24.2]} 31... Qxb3 {[%clk 0:00:20.7]}
32. Qxa8 {[%clk 0:01:23.1]} 32... h4 {[%clk 0:00:18.1]} 33. Nxh4 {[%clk
0:01:22.2]} 33... Bh5 {[%clk 0:00:18.3]} 34. Qa3 {[%clk 0:01:18.4]} 34... Qc4
{[%clk 0:00:17.1]} 35. Qe3 {[%clk 0:01:17.3]} 35... Qe6 {[%clk 0:00:09.9]} 36.
Nf5 {[%clk 0:01:14.7]} 36... Bg6 {[%clk 0:00:09.4]} 37. Qf4 {[%clk 0:01:08.7]}
37... Qc6 {[%clk 0:00:08.6]} 38. Qh4+ {[%clk 0:01:07.3]} 38... Kg8 {[%clk
0:00:08.9]} 39. Rac1 {[%clk 0:01:05.7]} 39... Qe8 {[%clk 0:00:08.2]} 40. Rxc7
{[%clk 0:01:04]} 1-0

[Event "Early-Titled-Tuesday-Blitz-January-23-2024"]
[Site "Chess.com"]
[Date "2024.01.23"]
[Round "10"]
[White "FMCASTE"]
[Black "simonachess"]
[Result "1-0"]
[WhiteElo "2505"]
[BlackElo "2356"]
[TimeControl "180+1"]
[EndTime "9:55:40 PST"]
[Termination "FMCASTE won by resignation"]

1. d4 {[%clk 0:01:33]} 1... Nf6 {[%clk 0:02:59.4]} 2. Bf4 {[%clk 0:01:32.9]}
2... c5 {[%clk 0:02:57.7]} 3. e3 {[%clk 0:01:32.9]} 3... e6 {[%clk 0:02:57.9]}
4. Nf3 {[%clk 0:01:33.3]} 4... Be7 {[%clk 0:02:57.7]} 5. Nbd2 {[%clk 0:01:34]}
5... O-O {[%clk 0:02:58]} 6. Bd3 {[%clk 0:01:33.2]} 6... b6 {[%clk 0:02:57.8]}
7. c3 {[%clk 0:01:32.9]} 7... Bb7 {[%clk 0:02:58.1]} 8. O-O {[%clk 0:01:33.5]}
8... d6 {[%clk 0:02:58.5]} 9. h3 {[%clk 0:01:33.4]} 9... Re8 {[%clk 0:02:58.1]}
10. Bh2 {[%clk 0:01:32.3]} 10... Bf8 {[%clk 0:02:56.3]} 11. a4 {[%clk
0:01:32.8]} 11... a6 {[%clk 0:02:52.6]} 12. a5 {[%clk 0:01:31.9]} 12... b5
{[%clk 0:02:52.8]} 13. c4 {[%clk 0:01:31]} 13... b4 {[%clk 0:02:50.8]} 14. Qc2
{[%clk 0:01:30.5]} 14... g6 {[%clk 0:02:50.1]} 15. Rfd1 {[%clk 0:01:30.9]} 15...
Qe7 {[%clk 0:02:45]} 16. Bg3 {[%clk 0:01:31.4]} 16... Bg7 {[%clk 0:02:42.5]} 17.
Bh4 {[%clk 0:01:31.5]} 17... h6 {[%clk 0:02:43]} 18. dxc5 {[%clk 0:01:29.5]}
18... dxc5 {[%clk 0:02:43.1]} 19. Be4 {[%clk 0:01:29.4]} 19... Nc6 {[%clk
0:02:41.6]} 20. Bxc6 {[%clk 0:01:24.6]} 20... Bxc6 {[%clk 0:02:42.5]} 21. Ne5
{[%clk 0:01:24.7]} 21... Bb7 {[%clk 0:02:38.4]} 22. Nb3 {[%clk 0:01:25.3]} 22...
g5 {[%clk 0:02:32.1]} 23. Bg3 {[%clk 0:01:25.5]} 23... Rad8 {[%clk 0:02:15.8]}
24. Qe2 {[%clk 0:01:18.2]} 24... Bf8 {[%clk 0:01:45.6]} 25. Rxd8 {[%clk
0:01:12.9]} 25... Rxd8 {[%clk 0:01:45.7]} 26. Nd3 {[%clk 0:01:13]} 26... Ne4
{[%clk 0:01:41.1]} 27. Bh2 {[%clk 0:01:10]} 27... Rc8 {[%clk 0:01:31.9]} 28. f3
{[%clk 0:01:09.7]} 28... Nf6 {[%clk 0:01:30]} 29. f4 {[%clk 0:01:09.8]} 29...
Ne4 {[%clk 0:01:28.9]} 30. fxg5 {[%clk 0:01:08.4]} 30... hxg5 {[%clk 0:01:29.8]}
31. Rf1 {[%clk 0:01:07.7]} 31... Bg7 {[%clk 0:01:27.6]} 32. Ne5 {[%clk
0:01:00.8]} 32... Rd8 {[%clk 0:01:24.3]} 33. Rxf7 {[%clk 0:00:58]} 33... Qxf7
{[%clk 0:01:24.1]} 34. Nxf7 {[%clk 0:00:57.8]} 34... Kxf7 {[%clk 0:01:25]} 35.
Qh5+ {[%clk 0:00:52.6]} 35... Kg8 {[%clk 0:01:24.5]} 36. Bc7 {[%clk 0:00:51.5]}
36... Rf8 {[%clk 0:01:19.3]} 37. Nxc5 {[%clk 0:00:48.1]} 37... Nxc5 {[%clk
0:01:08.6]} 38. Bd6 {[%clk 0:00:47.4]} 38... Rf5 {[%clk 0:01:08.6]} 39. Qe8+
{[%clk 0:00:42.4]} 39... Kh7 {[%clk 0:01:08.9]} 40. Qe7 {[%clk 0:00:33.2]} 40...
Be4 {[%clk 0:00:46.7]} 41. Bxc5 {[%clk 0:00:32.5]} 41... Rxc5 {[%clk 0:00:45.7]}
42. Qxc5 {[%clk 0:00:31.7]} 1-0

[Event "Early-Titled-Tuesday-Blitz-January-23-2024"]
[Site "Chess.com"]
[Date "2024.01.23"]
[Round "10"]
[White "R2D2PTY"]
[Black "NewYearGirl"]
[Result "0-1"]
[WhiteElo "2257"]
[BlackElo "2374"]
[TimeControl "180+1"]
[EndTime "9:55:46 PST"]
[Termination "NewYearGirl won by checkmate"]

1. e4 {[%clk 0:03:00.9]} 1... c5 {[%clk 0:02:58.5]} 2. Nf3 {[%clk 0:03:01.2]}
2... d6 {[%clk 0:02:58.3]} 3. Bb5+ {[%clk 0:03:00.8]} 3... Nd7 {[%clk
0:02:56.5]} 4. a4 {[%clk 0:03:00.8]} 4... Nf6 {[%clk 0:02:55.8]} 5. Nc3 {[%clk
0:03:00.6]} 5... g6 {[%clk 0:02:56.2]} 6. O-O {[%clk 0:02:58]} 6... Bg7 {[%clk
0:02:56.6]} 7. Re1 {[%clk 0:02:44.9]} 7... O-O {[%clk 0:02:44.8]} 8. Bf1 {[%clk
0:02:38.8]} 8... b6 {[%clk 0:02:43.6]} 9. d3 {[%clk 0:02:31.6]} 9... Bb7 {[%clk
0:02:43.4]} 10. Bf4 {[%clk 0:02:20]} 10... a6 {[%clk 0:02:38.4]} 11. Qc1 {[%clk
0:02:13.9]} 11... Bc6 {[%clk 0:02:27.7]} 12. Bh6 {[%clk 0:02:13.7]} 12... b5
{[%clk 0:02:27.4]} 13. Bxg7 {[%clk 0:02:13.9]} 13... Kxg7 {[%clk 0:02:27.9]} 14.
Qg5 {[%clk 0:01:59.3]} 14... h6 {[%clk 0:02:27]} 15. Qg3 {[%clk 0:01:58.2]}
15... Nh5 {[%clk 0:02:24.5]} 16. Qh3 {[%clk 0:01:44.9]} 16... Ndf6 {[%clk
0:02:23.2]} 17. e5 {[%clk 0:01:32.9]} 17... dxe5 {[%clk 0:02:17.8]} 18. Nxe5
{[%clk 0:01:31.4]} 18... Be8 {[%clk 0:02:07.2]} 19. Qf3 {[%clk 0:01:08.1]} 19...
b4 {[%clk 0:02:04.7]} 20. Nb1 {[%clk 0:00:44.9]} 20... Kh7 {[%clk 0:01:52.2]}
21. Nd2 {[%clk 0:00:27]} 21... Rc8 {[%clk 0:01:44.7]} 22. Ndc4 {[%clk
0:00:22.6]} 22... Ng7 {[%clk 0:01:40.7]} 23. c3 {[%clk 0:00:20.5]} 23... Nf5
{[%clk 0:01:39.5]} 24. g4 {[%clk 0:00:12.9]} 24... Nh4 {[%clk 0:01:37.1]} 25.
Qg3 {[%clk 0:00:08.4]} 25... g5 {[%clk 0:01:36.8]} 26. a5 {[%clk 0:00:07.4]}
26... Nd5 {[%clk 0:01:34.7]} 27. cxb4 {[%clk 0:00:02.9]} 27... cxb4 {[%clk
0:01:34]} 28. Rad1 {[%clk 0:00:03.1]} 28... Nf4 {[%clk 0:01:33.9]} 29. d4 {[%clk
0:00:03.3]} 29... Bb5 {[%clk 0:01:31.5]} 30. Nb6 {[%clk 0:00:03.5]} 30... Rc2
{[%clk 0:01:28.1]} 31. Bxb5 {[%clk 0:00:03]} 31... axb5 {[%clk 0:01:29]} 32. Nd3
{[%clk 0:00:03]} 32... Qd6 {[%clk 0:01:12.6]} 33. Nxf4 {[%clk 0:00:03]} 33...
Qxf4 {[%clk 0:01:13.5]} 34. Qd3+ {[%clk 0:00:03.3]} 34... Kh8 {[%clk 0:01:11]}
35. Qxc2 {[%clk 0:00:03.6]} 35... Nf3+ {[%clk 0:01:10.9]} 36. Kf1 {[%clk
0:00:03.5]} 36... Nxh2+ {[%clk 0:01:10.1]} 37. Ke2 {[%clk 0:00:03.7]} 37... Nxg4
{[%clk 0:01:06.2]} 38. Qd3 {[%clk 0:00:03.5]} 38... Qxf2# {[%clk 0:00:54.4]} 0-1